fUST/lending_fUST_20240807
["ID","MTS","AMOUNT","RATE_DAILY","PERIOD"]
[334329077,1722982246156,-500.0,0.00038356,14]
[334329078,1722982246166,-5740.88,0.00038356,14]
[334329079,1722982246176,-1896.36,0.00038356,14]
[334329080,1722982246185,-2577.55,0.00038356,14]
[334329081,1722982246195,-1101.58,0.00038356,14]
[334329082,1722982246204,-2888.24,0.00038356,14]
[334329084,1722982246214,-500.0,0.00038356,14]
[334329085,1722982246224,-537.98,0.00038356,14]
[334329087,1722982246235,-2750.73,0.00038356,14]
[334329088,1722982246244,-2253.63,0.00038356,14]
[334329089,1722982246254,-500.0,0.00038356,14]
[334329090,1722982246263,-500.0,0.00038356,14]
[334329091,1722982246272,-500.0,0.00038356,14]
[334329092,1722982246281,-500.0,0.00038356,14]
[334329093,1722982246290,-500.0,0.00038356,14]
[334329094,1722982246300,-573.99,0.00038356,14]
[334329096,1722982246310,-502.42492275,0.00038356,14]
[334329097,1722982246320,-947.9,0.00038356,14]
[334329098,1722982246329,-6726.27,0.00038356,14]
[334329099,1722982246338,-151.0,0.00038356,7]
[334329100,1722982246347,-151.0,0.00038356,7]
[334329101,1722982246356,-797.26,0.00038356,14]
[334329102,1722982246365,-500.0,0.00038356,14]
[334329103,1722982246384,-253.96016575,0.00038356,14]
[334329104,1722982246397,-1709.11,0.00038356,14]
[334329105,1722982246407,-500.0,0.00038356,14]
[334329106,1722982246417,-500.0,0.00038356,14]
[334329107,1722982246428,-1456.83,0.00038356,14]
[334329108,1722982246438,-151.0,0.00038356,7]
[334329109,1722982246448,-151.0,0.00038356,7]
[334329110,1722982246458,-500.0,0.00038356,14]
[334329111,1722982246468,-586.56,0.00038356,14]
[334329112,1722982246478,-500.0,0.00038356,14]
[334329113,1722982246488,-2506.36,0.00038356,14]
[334329114,1722982246498,-500.0,0.00038356,14]
[334329115,1722982246508,-867.26,0.00038356,14]
[334329116,1722982246519,-500.0,0.00038356,14]
[334329117,1722982246529,-500.0,0.00038356,6]
[334329118,1722982246540,-500.0,0.00038356,14]
[334329119,1722982246551,-1981.2,0.00038356,14]
[334329120,1722982246562,-502.65201744,0.00038356,14]
[334329121,1722982246572,-500.0,0.00038356,14]
[334329122,1722982246582,-6119.73,0.00038356,14]
[334329123,1722982246592,-3272.5,0.00038356,14]
[334329124,1722982246602,-1862.84,0.00038356,14]
[334329125,1722982246612,-500.0,0.00038356,14]
[334329126,1722982246622,-519.07,0.00038356,14]
[334329153,1722982246834,-601.67,0.00038356,14]
[334329156,1722982246868,-500.0,0.00038356,14]
[334329159,1722982246878,-3575.8,0.00038356,14]
[334329161,1722982246888,-11629.68,0.00038356,14]
[334329163,1722982246898,-500.0,0.00038356,14]
[334329165,1722982246908,-963.86,0.00038356,14]
[334329167,1722982246918,-4764.42,0.00038356,14]
[334329169,1722982246931,-500.0,0.00038356,14]
[334329171,1722982246941,-500.0,0.00038356,14]
[334329173,1722982246950,-500.0,0.00038356,14]
[334329176,1722982246960,-3393.47,0.00038356,14]
[334329177,1722982246970,-4493.33,0.00038356,14]
[334329178,1722982246981,-1556.23,0.00038356,14]
[334329179,1722982246990,-754.13,0.00038356,14]
[334329180,1722982246999,-500.0,0.00038356,14]
[334329181,1722982247009,-500.0,0.00038356,14]
[334329182,1722982247019,-1958.33,0.00038356,14]
[334329183,1722982247028,-500.0,0.00038356,14]
[334329184,1722982247038,-151.0,0.00038356,7]
[334329185,1722982247048,-151.0,0.00038356,7]
[334329186,1722982247058,-500.0,0.00038356,14]
[334329187,1722982247067,-500.0,0.00038356,14]
[334329188,1722982247077,-500.0,0.00038356,14]
[334329189,1722982247087,-151.0,0.00038356,7]
[334329190,1722982247096,-151.0,0.00038356,7]
[334329191,1722982247106,-151.0,0.00038356,7]
[334329192,1722982247115,-1572.66,0.00038356,14]
[334329193,1722982247125,-151.0,0.00038356,7]
[334329194,1722982247135,-500.0,0.00038356,14]
[334329195,1722982247149,-151.0,0.00038356,7]
[334329196,1722982247159,-151.0,0.00038356,7]
[334329197,1722982247169,-534.69919382,0.00038356,14]
[334329198,1722982247179,-151.0,0.00038356,7]
[334329199,1722982247189,-500.0,0.00038356,14]
[334329200,1722982247200,-151.0,0.00038356,7]
[334329201,1722982247209,-151.0,0.00038356,7]
[334329202,1722982247220,-500.0,0.00038356,14]
[334329203,1722982247231,-510.72223826,0.00038356,14]
[334329204,1722982247242,-151.0,0.00038356,7]
[334329205,1722982247251,-500.0,0.00038356,14]
[334329206,1722982247262,-767.67,0.00038356,14]
[334329207,1722982247272,-605.08,0.00038356,14]
[334329208,1722982247282,-500.0,0.00038356,14]
[334329209,1722982247292,-500.0,0.00038356,14]
[334329210,1722982247302,-151.0,0.00038356,7]
[334329211,1722982247313,-151.0,0.00038356,7]
[334329212,1722982247323,-1144.79,0.00038356,14]
[334329213,1722982247333,-151.0,0.00038356,7]
[334329214,1722982247342,-151.0,0.00038356,7]
[334329215,1722982247352,-151.0,0.00038356,7]
[334329216,1722982247362,-500.0,0.00038356,14]
[334329217,1722982247372,-151.0,0.00038356,7]
[334329218,1722982247383,-267.67075,0.00038356,7]
[334329219,1722982247399,-34652.7,0.00038356,14]
[334329220,1722982247409,-500.0,0.00038356,14]
[334329221,1722982247418,-500.0,0.00038356,14]
[334329222,1722982247428,-736.67,0.00038356,14]
[334329223,1722982247439,-775.47,0.00038356,14]
[334329224,1722982247450,-500.0,0.00038356,14]
[334329225,1722982247459,-151.0,0.00038356,7]
[334329226,1722982247470,-151.0,0.00038356,7]
[334329227,1722982247481,-500.0,0.00038356,14]
[334329228,1722982247491,-693.02,0.00038356,14]
[334329229,1722982247501,-1391.04,0.00038356,14]
[334329230,1722982247512,-3183.46,0.00038356,14]
[334329231,1722982247522,-500.0,0.00038356,14]
[334329232,1722982247533,-9431.32,0.00038356,14]
[334329233,1722982247543,-1127.02,0.00038356,14]
[334329234,1722982247552,-500.0,0.00038356,14]
[334329235,1722982247563,-3271.77,0.00038356,14]
[334329236,1722982247572,-500.0,0.00038356,14]
[334329237,1722982247582,-151.0,0.00038356,7]
[334329238,1722982247592,-151.0,0.00038356,7]
[334329239,1722982247602,-151.0,0.00038356,7]
[334329240,1722982247612,-151.0,0.00038356,7]
[334329241,1722982247622,-268.489244,0.00038356,7]
[334329242,1722982247632,-151.0,0.00038356,7]
[334329243,1722982247644,-151.0,0.00038356,7]
[334329244,1722982247654,-151.0,0.00038356,7]
[334329245,1722982247664,-2586.03,0.00038356,14]
[334329246,1722982247674,-151.0,0.00038356,7]
[334329247,1722982247684,-151.0,0.00038356,7]
[334329248,1722982247694,-151.0,0.00038356,7]
[334329249,1722982247704,-151.0,0.00038356,7]
[334329250,1722982247714,-151.0,0.00038356,7]
[334329251,1722982247724,-151.0,0.00038356,7]
[334329252,1722982247735,-592.57,0.00038356,14]
[334329253,1722982247745,-151.0,0.00038356,7]
[334329254,1722982247755,-151.0,0.00038356,7]
[334329255,1722982247765,-690.23,0.00038356,14]
[334329256,1722982247776,-151.0,0.00038356,7]
[334329257,1722982247786,-151.0,0.00038356,7]
[334329258,1722982247796,-151.0,0.00038356,7]
[334329259,1722982247806,-151.0,0.00038356,7]
[334329260,1722982247815,-5533.23,0.00038356,14]
[334329261,1722982247825,-151.0,0.00038356,7]
[334329262,1722982247835,-151.0,0.00038356,7]
[334329263,1722982247851,-216.19832,0.00038356,7]
[334329264,1722982247861,-1429.84,0.00038356,14]
[334329265,1722982247871,-500.0,0.00038356,14]
[334329266,1722982247880,-2247.68,0.00038356,14]
[334329267,1722982247892,-693.89,0.00038356,14]
[334329268,1722982247902,-909.25,0.00038356,14]
[334329269,1722982247912,-606.7,0.00038356,14]
[334329270,1722982247922,-500.0,0.00038356,7]
[334329271,1722982247935,-22047.54129981,0.00038356,14]
[334329272,1722982248728,-2001.19870019,0.00038356,14]
[334329273,1722982248741,-502.21132263,0.00038356,14]
[334329274,1722982248751,-496.58997718,0.00038356,14]
[334329275,1722982248999,-691.02362734,0.00038326,3]
[334329276,1722982249498,273.37336231,9.9e-05,2]
[334329277,1722982257046,82.14202556,9.9e-05,2]
[334329278,1722982257070,191.23133675,9.9e-05,2]
[334329279,1722982266353,379.8785774,0.00027,120]
[334329280,1722982275738,209.09979103,0.00015532,2]
[334329281,1722982275764,40.90020897,0.00015532,2]
[334329282,1722982275955,250.0,0.00015574,2]
[334329283,1722982276193,126.53765323,0.00015617,2]
[334329284,1722982276220,123.46234677,0.00015617,2]
[334329285,1722982276441,250.0,0.0001566,2]
[334329286,1722982276670,250.0,0.00015702,2]
[334329287,1722982276897,250.0,0.00015745,2]
[334329288,1722982277120,250.0,0.00015787,2]
[334329289,1722982277340,250.0,0.0001583,2]
[334329290,1722982277604,250.0,0.00015873,2]
[334329291,1722982277809,250.0,0.00015915,2]
[334329292,1722982278033,250.0,0.00015958,2]
[334329295,1722982425000,252.91900727,0.00015958,2]
[334329300,1722983101131,167.46199,0.00014247,2]
[334329303,1722983188376,217.86716505,0.00014247,2]
[334329304,1722983198358,373.0726274,0.00014247,2]
[334329305,1722983234127,-314.4873663,0.00017019,2]
[334329306,1722983234149,-155.58214353,0.00018,2]
[334329307,1722983234179,-250.0,0.0001835,2]
[334329308,1722983234204,-250.0,0.000184,2]
[334329309,1722983234230,-250.0,0.0001845,2]
[334329310,1722983234258,-250.0,0.00018501,2]
[334329311,1722983234282,-300.0,0.00018522,2]
[334329312,1722983234306,-1378.16502549,0.00018523,2]
[334329313,1722983244150,-1569.19135009,0.00018523,2]
[334329316,1722983302022,4513.55657017,0.000125,2]
[334329318,1722983366631,392.34046686,0.00016347,2]
[334329320,1722983368116,-294.0,0.00016347,2]
[334329321,1722983370106,-129.87941194,0.00016347,2]
[334329322,1722983370134,-250.0,0.00018009,2]
[334329323,1722983370156,-250.0,0.00018059,2]
[334329324,1722983370180,-250.0,0.00018108,2]
[334329325,1722983370210,-250.0,0.00018158,2]
[334329326,1722983370235,-250.0,0.00018207,2]
[334329327,1722983370257,-250.0,0.00018256,2]
[334329328,1722983370280,-250.0,0.00018306,2]
[334329329,1722983370302,-250.0,0.00018355,2]
[334329330,1722983370325,-250.0,0.00018405,2]
[334329331,1722983370347,-250.0,0.00018454,2]
[334329332,1722983370369,-250.0,0.00018503,2]
[334329333,1722983370390,-300.0,0.00018522,2]
[334329334,1722983370413,-21952.64362442,0.00018523,2]
[334329335,1722983370436,-1295.9235744,0.00018523,2]
[334329336,1722983370462,-250.0,0.00018553,2]
[334329337,1722983370484,-250.0,0.00018602,2]
[334329338,1722983370506,-250.0,0.00018652,2]
[334329339,1722983370530,-250.0,0.00018701,2]
[334329340,1722983370551,-3149.56109598,0.00018702,2]
[334329341,1722983370574,-144.39296344,0.0001875,2]
[334329342,1722983370602,-105.60703656,0.0001875,2]
[334329343,1722983370625,-196.69509736,0.000188,2]
[334329344,1722983400471,360.68547627,0.00015151,2]
[334329345,1722983400499,367.88923479,0.00015151,2]
[334329346,1722983400524,81.54028484,0.00015151,2]
[334329377,1722983433545,-277.18370616,0.00018786,2]
[334329378,1722983433556,-53.30490264,0.000188,2]
[334329379,1722983433566,-183.10678503,0.00018845,2]
[334329380,1722983433576,-250.0,0.00018849,2]
[334329381,1722983433586,-250.0,0.00018899,2]
[334329382,1722983433596,-250.0,0.00018948,2]
[334329383,1722983433606,-1460.05679102,0.00018979,2]
[334329384,1722983433616,-300.87291822,0.00019001,2]
[334329385,1722983433626,-250.0,0.00019041,2]
[334329386,1722983433789,-155.13362548,0.00019177,2]
[334329387,1722983433854,-413.01700224,0.00019256,2]
[334329388,1722983433864,-154.60575532,0.00019256,2]
[334329389,1722983433874,-154.89105218,0.00019343,2]
[334329390,1722983433883,-342.05014288,0.00019451,2]
[334329391,1722983433893,-204.26455566,0.00019451,2]
[334329392,1722983433904,-532.27882907,0.00019477,2]
[334329393,1722983433914,-156.73199194,0.00019477,2]
[334329394,1722983433924,-522.39318645,0.00019547,2]
[334329395,1722983433934,-301.05042954,0.00019999,2]
[334329396,1722983433944,-314.61263698,0.0002,2]
[334329397,1722983433954,-377.79686781,0.0002,2]
[334329398,1722983433964,-300.0,0.00020719,2]
[334329399,1722983433974,-270.89378798,0.0002072,2]
[334329400,1722983433985,-157.83841247,0.00021589,2]
[334329401,1722983433995,-160.19468673,0.00021906,2]
[334329402,1722983434006,-154.77557542,0.00021906,2]
[334329403,1722983434016,-942.61257937,0.00021906,2]
[334329404,1722983434027,-987.82646631,0.00021906,2]
[334329405,1722983434037,-961.20511993,0.00021916,2]
[334329406,1722983434047,-300.87291819,0.000223,2]
[334329407,1722983434057,-304.0,0.00022791,2]
[334329408,1722983434067,-300.87291819,0.00025598,2]
[334329409,1722983434076,-300.87291819,0.00028897,2]
[334329410,1722983434086,-635.53510405,0.00029854,2]
[334329411,1722983434095,-1459.90712368,0.0003,2]
[334329412,1722983434105,-300.87291819,0.00032195,2]
[334329413,1722983434115,-532.31629268,0.00032502,2]
[334329420,1722983438691,-1310.4,0.00032502,2]
[334329422,1722983438702,-2931.97552167,0.00032502,2]
[334329423,1722983438711,-1346.65,0.00032602,14]
[334329424,1722983438721,-452.97743308,0.00033238,7]
[334329425,1722983438730,-358.42992919,0.00033239,30]
[334329426,1722983438739,-11288.78281738,0.00033239,7]
[334329427,1722983438763,-582.41753839,0.00033239,7]
[334329428,1722983438774,-17915.64205258,0.00033239,7]
[334329429,1722983438787,-14022.22696251,0.00033239,7]
[334329430,1722983438796,-202.93670065,0.00033239,30]
[334329431,1722983438806,-171.553247,0.00034352,2]
[334329432,1722983438816,-300.87291819,0.00035494,2]
[334329433,1722983438825,-342.18,0.0003599,3]
[334329434,1722983438835,-9121.3922707,0.00036,2]
[334329435,1722983438848,-962.01262593,0.000366,2]
[334329436,1722983438858,-962.01262591,0.00037014,2]
[334329437,1722983438869,-962.01262591,0.00037428,2]
[334329438,1722983438878,-366.4812016,0.00037808,2]
[334329439,1722983438887,-271.3686162,0.00037808,2]
[334329440,1722983438897,-962.01262591,0.00037841,2]
[334329441,1722983438906,-4766.53087076,0.00037852,2]
[334329442,1722983438917,-4645.44221486,0.00037997,120]
[334329443,1722983438928,-1346.65,0.00038145,14]
[334329444,1722983438938,-157.31396554,0.00038188,25]
[334329445,1722983438947,-1631.69,0.0003819,3]
[334329446,1722983438956,-500.0,0.00038199,15]
[334329447,1722983438965,-178.96088203,0.00038199,15]
[334329448,1722983438974,-196.09785535,0.00038199,15]
[334329449,1722983438983,-500.0,0.00038199,15]
[334329450,1722983438993,-500.0,0.00038199,15]
[334329451,1722983439002,-455.0874371,0.00038199,15]
[334329452,1722983439019,-12060.94802,0.000382,2]
[334329453,1722983439027,-4766.53087077,0.00038233,2]
[334329454,1722983439038,-2000.0,0.00038236,2]
[334329455,1722983439047,-40697.3995736,0.00038236,4]
[334329456,1722983439056,-31142.01216408,0.00038246,5]
[334329457,1722983439069,-962.01262591,0.00038255,2]
[334329458,1722983439079,-1048.55716593,0.00038256,2]
[334329459,1722983439088,-150.0,0.00038268,7]
[334329460,1722983439099,-5626.542,0.00038268,7]
[334329461,1722983439109,-2000.0,0.00038345,45]
[334329462,1722983439118,-2000.0,0.00038345,45]
[334329463,1722983439127,-500.0,0.00038345,45]
[334329464,1722983439136,-40697.3995736,0.00038345,4]
[334329465,1722983439146,-203486.997868,0.00038346,4]
[334329466,1722983439155,-155.0,0.0003835,39]
[334329467,1722983439165,-1000.0,0.00038355,25]
[334329468,1722983439174,-6194.95078518,0.00038356,21]
[334329471,1722983441789,-3112.19999999,0.00038356,21]
[334329472,1722983441800,-470.49417695,0.00038356,21]
[334329473,1722983441811,-311.20545213,0.00038356,21]
[334329474,1722983441823,-1528.27687429,0.00038356,21]
[334329498,1722983443660,-453.0,0.00021906,2]
[334329512,1722983443797,-508.20511993,0.00021906,2]
[334329514,1722983443806,-597.67294078,0.000383,2]
[334329528,1722983446838,-8.32705922,0.000383,2]
[334329529,1722983446847,-1286.10727256,0.00038356,21]
[334329530,1722983446885,-3114.29272038,0.00038356,21]
[334329531,1722983446896,-865.46167263,0.00038356,21]
[334329532,1722983446906,-3184.71529457,0.00038356,21]
[334329533,1722983446915,-500.0,0.00038356,50]
[334329534,1722983446926,-500.0,0.00038356,14]
[334329535,1722983446936,-500.0,0.00038356,14]
[334329536,1722983446946,-500.0,0.00038356,14]
[334329538,1722983446957,-500.0,0.00038356,14]
[334329540,1722983446967,-34.47205474,0.00038356,14]
[334329544,1722983447006,-465.52794526,0.00038356,14]
[334329545,1722983447016,-559.81704241,0.00038356,14]
[334329546,1722983447027,-221.87172236,0.00038356,14]
[334329547,1722983447036,-500.0,0.00038356,14]
[334329548,1722983447046,-500.0,0.00038356,14]
[334329549,1722983447055,-500.0,0.00038356,14]
[334329550,1722983447064,-500.0,0.00038356,14]
[334329551,1722983447073,-739.55,0.00038356,14]
[334329552,1722983447082,-500.0,0.00038356,14]
[334329553,1722983447091,-605.58977308,0.00038356,14]
[334329554,1722983447100,-500.0,0.00038356,14]
[334329555,1722983447110,-500.0,0.00038356,14]
[334329556,1722983447119,-500.0,0.00038356,14]
[334329557,1722983447128,-659.22,0.00038356,14]
[334329558,1722983447137,-500.0,0.00038356,14]
[334329559,1722983447146,-500.0,0.00038356,14]
[334329560,1722983447155,-500.0,0.00038356,14]
[334329561,1722983447164,-500.0,0.00038356,14]
[334329562,1722983447173,-689.13,0.00038356,14]
[334329563,1722983447183,-500.0,0.00038356,14]
[334329564,1722983447192,-500.0,0.00038356,14]
[334329565,1722983447201,-500.0,0.00038356,14]
[334329566,1722983447211,-165.949752,0.00038356,14]
[334329567,1722983447222,-1673.39,0.00038356,14]
[334329568,1722983447233,-500.0,0.00038356,14]
[334329569,1722983447242,-484.64911859,0.00038356,14]
[334329570,1722983447251,-561.69,0.00038356,14]
[334329571,1722983447262,-1310.25,0.00038356,14]
[334329572,1722983447272,-500.0,0.00038356,14]
[334329573,1722983447282,-500.0,0.00038356,14]
[334329574,1722983447292,-500.0,0.00038356,14]
[334329575,1722983447304,-606.47,0.00038356,14]
[334329576,1722983447468,-500.0,0.00038356,14]
[334329577,1722983447529,-545.07,0.00038356,14]
[334329578,1722983447539,-500.0,0.00038356,14]
[334329579,1722983447549,-186.98845583,0.00038356,14]
[334329580,1722983447558,-500.0,0.00038356,14]
[334329581,1722983447567,-500.0,0.00038356,14]
[334329582,1722983447576,-782.78,0.00038356,14]
[334329583,1722983447585,-943.25,0.00038356,14]
[334329584,1722983447595,-500.0,0.00038356,14]
[334329585,1722983447604,-500.0,0.00038356,14]
[334329586,1722983447613,-500.0,0.00038356,14]
[334329587,1722983447623,-500.0,0.00038356,14]
[334329588,1722983447632,-500.0,0.00038356,14]
[334329589,1722983447641,-500.0,0.00038356,14]
[334329590,1722983447650,-500.0,0.00038356,14]
[334329591,1722983447659,-500.0,0.00038356,14]
[334329592,1722983447668,-200.0,0.00038356,7]
[334329593,1722983447677,-500.0,0.00038356,14]
[334329594,1722983447687,-500.0,0.00038356,14]
[334329595,1722983447696,-500.0,0.00038356,14]
[334329596,1722983447706,-500.0,0.00038356,14]
[334329597,1722983447715,-500.0,0.00038356,14]
[334329598,1722983447725,-500.0,0.00038356,14]
[334329599,1722983447734,-500.0,0.00038356,14]
[334329600,1722983447744,-500.0,0.00038356,14]
[334329601,1722983447753,-500.0,0.00038356,14]
[334329602,1722983447762,-500.0,0.00038356,14]
[334329603,1722983447774,-500.0,0.00038356,14]
[334329604,1722983447784,-500.0,0.00038356,14]
[334329605,1722983447793,-552.0,0.00038356,14]
[334329606,1722983447802,-500.0,0.00038356,14]
[334329607,1722983447811,-500.0,0.00038356,14]
[334329608,1722983447820,-500.0,0.00038356,14]
[334329609,1722983447829,-500.0,0.00038356,14]
[334329610,1722983447839,-500.0,0.00038356,14]
[334329611,1722983447848,-603.19832909,0.00038356,14]
[334329612,1722983447858,-500.0,0.00038356,14]
[334329613,1722983447867,-500.0,0.00038356,14]
[334329614,1722983447876,-500.0,0.00038356,14]
[334329615,1722983447886,-500.0,0.00038356,14]
[334329616,1722983447895,-500.0,0.00038356,14]
[334329617,1722983447905,-624.6,0.00038356,14]
[334329618,1722983447914,-500.0,0.00038356,14]
[334329619,1722983447923,-500.0,0.00038356,14]
[334329620,1722983447932,-773.79,0.00038356,14]
[334329621,1722983447941,-643.63,0.00038356,14]
[334329622,1722983447950,-500.0,0.00038356,14]
[334329623,1722983447959,-500.0,0.00038356,14]
[334329624,1722983447969,-500.0,0.00038356,14]
[334329625,1722983447978,-500.0,0.00038356,14]
[334329626,1722983447987,-500.0,0.00038356,14]
[334329627,1722983447997,-500.0,0.00038356,14]
[334329628,1722983448006,-500.0,0.00038356,14]
[334329629,1722983448016,-500.0,0.00038356,14]
[334329630,1722983448029,-540.15040749,0.00038356,14]
[334329631,1722983448038,-513.08,0.00038356,14]
[334329632,1722983448047,-561.69,0.00038356,14]
[334329633,1722983448057,-500.0,0.00038356,14]
[334329634,1722983448066,-884.68,0.00038356,14]
[334329635,1722983448075,-568.80783754,0.00038356,14]
[334329636,1722983448084,-240.73582674,0.00038356,14]
[334329637,1722983448094,-500.0,0.00038356,14]
[334329638,1722983448103,-500.0,0.00038356,14]
[334329639,1722983448112,-500.0,0.00038356,14]
[334329640,1722983448121,-500.0,0.00038356,14]
[334329641,1722983448130,-500.0,0.00038356,14]
[334329642,1722983448139,-500.0,0.00038356,14]
[334329643,1722983448149,-531.12424059,0.00038356,14]
[334329644,1722983448158,-500.0,0.00038356,14]
[334329645,1722983448168,-500.0,0.00038356,14]
[334329646,1722983448177,-2079.92,0.00038356,14]
[334329647,1722983448187,-611.93,0.00038356,14]
[334329648,1722983448198,-500.0,0.00038356,14]
[334329649,1722983448208,-500.0,0.00038356,14]
[334329650,1722983448223,-500.0,0.00038356,14]
[334329651,1722983448232,-660.08,0.00038356,14]
[334329652,1722983448243,-500.0,0.00038356,14]
[334329653,1722983448252,-500.0,0.00038356,14]
[334329654,1722983448262,-500.0,0.00038356,14]
[334329655,1722983448276,-500.0,0.00038356,14]
[334329656,1722983448285,-1015.34,0.00038356,14]
[334329657,1722983448298,-500.0,0.00038356,14]
[334329658,1722983448308,-500.0,0.00038356,14]
[334329659,1722983448318,-654.8,0.00038356,14]
[334329660,1722983448327,-1060.71,0.00038356,14]
[334329661,1722983448337,-530.93,0.00038356,14]
[334329662,1722983448347,-2571.26,0.00038356,14]
[334329663,1722983448357,-500.0,0.00038356,14]
[334329664,1722983448366,-538.86,0.00038356,14]
[334329665,1722983448376,-576.24,0.00038356,14]
[334329666,1722983448386,-1248.48,0.00038356,14]
[334329667,1722983448395,-500.0,0.00038356,14]
[334329668,1722983448405,-500.0,0.00038356,14]
[334329669,1722983448415,-500.0,0.00038356,14]
[334329670,1722983448425,-500.0,0.00038356,14]
[334329671,1722983448434,-500.0,0.00038356,14]
[334329672,1722983448444,-500.0,0.00038356,14]
[334329673,1722983448453,-500.0,0.00038356,14]
[334329674,1722983448462,-500.0,0.00038356,14]
[334329675,1722983448472,-500.0,0.00038356,14]
[334329676,1722983448481,-500.0,0.00038356,14]
[334329677,1722983448490,-564.47,0.00038356,14]
[334329678,1722983448500,-500.0,0.00038356,14]
[334329679,1722983448510,-500.0,0.00038356,14]
[334329680,1722983448522,-1939.22,0.00038356,14]
[334329681,1722983448532,-500.0,0.00038356,14]
[334329682,1722983448542,-500.0,0.00038356,14]
[334329683,1722983448551,-635.79,0.00038356,14]
[334329684,1722983448561,-500.0,0.00038356,14]
[334329685,1722983448571,-500.0,0.00038356,14]
[334329686,1722983448580,-500.0,0.00038356,14]
[334329687,1722983448589,-500.0,0.00038356,14]
[334329688,1722983448599,-745.35,0.00038356,14]
[334329689,1722983448609,-2478.52,0.00038356,14]
[334329690,1722983448619,-1729.02,0.00038356,14]
[334329691,1722983448629,-654.54,0.00038356,14]
[334329692,1722983448639,-500.0,0.00038356,14]
[334329693,1722983448648,-500.0,0.00038356,14]
[334329694,1722983448658,-519.9,0.00038356,14]
[334329695,1722983448668,-500.0,0.00038356,14]
[334329696,1722983448678,-500.0,0.00038356,14]
[334329697,1722983448688,-500.0,0.00038356,14]
[334329698,1722983448697,-1915.44,0.00038356,14]
[334329699,1722983448707,-500.0,0.00038356,14]
[334329700,1722983448716,-184.80024748,0.00038356,14]
[334329701,1722983448726,-500.0,0.00038356,14]
[334329702,1722983448736,-659.88,0.00038356,14]
[334329703,1722983448746,-500.0,0.00038356,14]
[334329704,1722983448756,-500.0,0.00038356,14]
[334329705,1722983448765,-500.0,0.00038356,14]
[334329706,1722983448783,-684.67,0.00038356,14]
[334329707,1722983448793,-542.88,0.00038356,14]
[334329708,1722983448802,-780.05,0.00038356,14]
[334329709,1722983448813,-500.0,0.00038356,14]
[334329710,1722983448823,-534.68150493,0.00038356,14]
[334329711,1722983448833,-500.0,0.00038356,14]
[334329712,1722983448843,-500.0,0.00038356,14]
[334329713,1722983448853,-635.69,0.00038356,14]
[334329714,1722983448862,-551.33261542,0.00038356,14]
[334329715,1722983448872,-500.0,0.00038356,14]
[334329716,1722983448882,-500.0,0.00038356,14]
[334329717,1722983448893,-555.03,0.00038356,14]
[334329718,1722983448902,-682.03,0.00038356,14]
[334329719,1722983448914,-575.77,0.00038356,14]
[334329720,1722983448924,-500.0,0.00038356,14]
[334329721,1722983448934,-500.0,0.00038356,14]
[334329722,1722983448944,-745.65,0.00038356,14]
[334329723,1722983448954,-500.0,0.00038356,14]
[334329724,1722983448965,-513.60074794,0.00038356,14]